bitfinex/quotes_ETHUSD_20250318
["timestamp","ask_amount","ask_price","bid_price","bid_amount"]
[1742325146737,2.74199823,1896.1,1895.9,10.54881]
[1742325146932,2.74199823,1896.1,1895.9,5.27438]
[1742325147149,3.56319823,1896.1,1895.8,0.7882]
[1742325147356,2.74199823,1895.9,1895.7,11.41499]
[1742325147751,2.74199823,1895.9,1895.6,6.03366]
[1742325147960,8.01671823,1895.9,1895.5,10.55115]
[1742325148140,8.01671823,1895.9,1895.7,0.06389882]
[1742325148456,0.8212,1895.8,1895.5,10.55115]
[1742325148657,0.8212,1895.8,1895.5,12.40398324]
[1742325149222,0.8212,1895.8,1895.6,5.27536]
[1742325149641,0.8212,1895.8,1895.6,5.27523]
[1742325149853,2.74199823,1895.9,1895.7,10.55001]
[1742325150151,2.74199823,1895.9,1895.7,11.30841]
[1742325150453,2.74199823,1895.9,1895.7,6.03332]
[1742325151256,10.35426,1896.0,1895.7,7.164184]
[1742325151442,7.82199823,1896.0,1895.7,7.164184]
[1742325152136,13.09634823,1896.0,1895.7,6.405784]
[1742325152357,2.74199823,1895.8,1895.6,5.27532]
[1742325152659,2.74199823,1895.8,1895.6,10.55064]
[1742325153262,2.74199823,1895.8,1895.7,5.27509]
[1742325153649,6.03203,1896.1,1895.8,5.27481]
[1742325153858,2.74199823,1896.2,1895.9,5.27429]
[1742325154153,2.74199823,1896.0,1895.8,5.27477]
[1742325154341,2.74199823,1896.0,1895.7,5.27501]
[1742325154544,3.55509823,1896.0,1895.7,12.299944]
[1742325154747,3.55509823,1896.0,1895.7,7.024934]
[1742325154944,2.74199823,1895.8,1895.6,6.14]
[1742325155143,2.74199823,1895.8,1895.6,5.27532]
[1742325155342,8.01691823,1895.8,1895.5,11.41548]
[1742325155549,2.74199823,1895.6,1895.5,11.41548]
[1742325155747,2.74199823,1895.6,1895.5,6.14]
[1742325156362,2.74199823,1895.6,1895.5,11.41565]
[1742325157267,2.74199823,1895.6,1895.5,6.14]
[1742325157464,6.07782,1895.7,1895.5,6.14]
[1742325157761,2.74199823,1895.6,1895.5,6.14]
[1742325158360,2.74199823,1895.6,1895.5,5.27565]
[1742325158566,2.74199823,1895.6,1895.4,5.27574]
[1742325159462,2.74199823,1895.6,1895.4,10.55151]
[1742325159662,2.74199823,1895.6,1895.4,5.27574]
[1742325160066,2.74199823,1895.6,1895.3,12.19659]
[1742325160243,2.74199823,1895.6,1895.4,5.27591]
[1742325161246,8.01743823,1895.6,1895.5,0.06500385]
[1742325161446,8.01743823,1895.6,1895.3,11.41601]
[1742325161752,5.92188264,1895.6,1895.5,0.06500385]
[1742325161957,5.92188264,1895.6,1895.4,0.062717]
[1742325162155,5.27544,1895.6,1895.5,0.06278093]
[1742325162535,5.27544,1895.6,1895.3,5.27606]
[1742325162734,5.27544,1895.6,1895.5,0.06278093]
[1742325162946,8.01743823,1895.6,1895.4,0.06289015]
[1742325163142,2.74199823,1895.6,1895.3,5.27606]
[1742325163345,5.27562,1895.6,1895.5,0.06289015]
[1742325163543,13.29314823,1895.6,1895.2,5.2763]
[1742325163765,2.74199823,1895.4,1895.2,5.2763]
[1742325163972,2.74199823,1895.4,1895.2,10.55261]
[1742325164159,2.74199823,1895.4,1895.3,5.2762]
[1742325164969,2.74199823,1895.4,1895.2,5.2763]
[1742325165158,2.74199823,1895.4,1895.1,6.06088]
[1742325165356,2.74199823,1895.2,1895.0,16.69388]
[1742325165562,2.74199823,1895.2,1895.0,11.4169]
[1742325166059,2.74199823,1895.2,1895.0,16.69374]
[1742325166672,2.74199823,1895.2,1895.1,5.27676]
[1742325167861,2.74199823,1895.3,1895.1,11.33519]
[1742325168600,2.74199823,1895.3,1895.1,5.27653]
[1742325169566,2.74199823,1895.3,1895.1,10.55307]
[1742325170400,2.74199823,1895.3,1895.1,10.55315]
[1742325170899,2.74199823,1895.3,1895.2,5.27648]
[1742325171123,2.74199823,1895.3,1895.1,5.27653]
[1742325171264,2.74199823,1895.3,1895.1,10.55316]
[1742325171894,2.74199823,1895.3,1895.1,5.27653]
[1742325175220,2.74199823,1895.3,1895.0,16.6939]
[1742325175519,8.01820823,1895.3,1895.0,11.41692]
[1742325175674,2.74199823,1895.1,1895.0,11.41691]
[1742325176312,8.01889823,1895.1,1894.8,16.69498]
[1742325176612,2.74199823,1895.1,1894.8,10.5549]
[1742325177620,2.74199823,1894.9,1894.5,13.28757731]
[1742325177786,2.74199823,1894.9,1894.6,5.27798]
[1742325178178,8.01931823,1894.9,1894.7,0.05310009]
[1742325178893,2.74199823,1894.9,1894.7,5.33081009]
[1742325179324,2.74199823,1894.9,1894.8,5.2776]
[1742325179625,2.74199823,1894.9,1894.8,0.05081901]
[1742325180315,5.081,1895.0,1894.8,5.32839901]
[1742325180518,7.82299823,1895.0,1894.8,5.32839901]
[1742325180814,5.081,1895.0,1894.9,5.27732]
[1742325181322,5.081,1895.3,1895.1,5.27664]
[1742325181618,7.82299823,1895.3,1895.1,5.27652]
[1742325181915,0.7718,1895.5,1895.2,5.32729901]
[1742325182093,2.74199823,1895.5,1895.2,6.55963518]
[1742325182294,2.74199823,1895.3,1895.2,6.55953518]
[1742325183415,2.74199823,1895.5,1895.3,5.27604]
[1742325183895,2.74199823,1895.5,1895.4,0.05081901]
[1742325184296,8.01764823,1895.5,1895.4,0.05081901]
[1742325184528,8.01764823,1895.5,1895.2,5.27643]
[1742325184827,10.55149,1895.5,1895.3,0.05081901]
[1742325185208,10.55149,1895.5,1895.1,12.22005]
[1742325185396,5.27565,1895.5,1895.4,0.05081901]
[1742325185592,10.55148,1895.5,1895.1,12.21991]
[1742325185903,2.74199823,1895.3,1895.1,11.41661]
[1742325186933,2.74199823,1895.3,1895.1,16.69318]
[1742325187226,2.74199823,1895.3,1895.2,5.27648]
[1742325188022,2.74199823,1895.3,1895.1,13.085888]
[1742325188208,2.74199823,1895.3,1895.1,11.41657]
[1742325189032,2.74199823,1895.3,1895.1,5.27657]
[1742325190416,2.74199823,1895.3,1895.2,5.27648]
[1742325190735,2.74199823,1895.3,1895.2,6.03878]
[1742325191237,2.74199823,1895.3,1895.1,5.27657]
[1742325192333,2.74199823,1895.3,1895.1,10.5532]
[1742325193335,2.74199823,1895.3,1895.2,5.32703244]
[1742325193503,2.74199823,1895.3,1895.2,0.05055244]
[1742325193833,2.74199823,1895.3,1895.2,5.27648]
[1742325193997,2.74199823,1895.3,1895.2,5.32703244]
[1742325195599,2.74199823,1895.5,1895.2,10.60351244]
[1742325196112,8.01765823,1895.5,1895.2,5.32703244]
[1742325196496,13.29346823,1895.5,1895.2,0.05055244]
[1742325196731,13.29346823,1895.5,1895.1,10.55342]
[1742325197042,8.01819823,1895.3,1895.2,0.05055244]
[1742325197339,8.78919823,1895.3,1895.0,5.27701]
[1742325197548,3.51299823,1895.3,1895.1,0.05055244]
[1742325197753,8.78920823,1895.3,1895.1,0.05055244]
[1742325197907,14.06568823,1895.3,1895.1,0.05055244]
[1742325198108,5.27648,1895.2,1894.9,11.41722]
[1742325198361,2.74199823,1895.1,1895.0,5.32759244]
[1742325199012,2.74199823,1895.1,1895.0,0.05055244]
[1742325199213,2.74199823,1895.1,1895.0,5.32759244]
[1742325199847,3.51299823,1895.3,1895.0,10.60463244]
[1742325200053,3.51299823,1895.3,1895.1,5.27672]
[1742325200253,2.74199823,1895.3,1895.1,7.06564448]
[1742325200461,2.74199823,1895.3,1895.2,5.32695973]
[1742325200956,2.74199823,1895.4,1895.2,5.32695973]
[1742325201112,5.08,1895.5,1895.3,5.27608]
[1742325201318,7.82199823,1895.5,1895.4,0.05040703]
[1742325201708,2.74199823,1895.5,1895.4,0.05040703]
[1742325201917,6.02592,1895.9,1895.4,6.65054573]
[1742325202219,2.74199823,1895.7,1895.5,5.27553]
[1742325202543,2.74199823,1895.7,1895.6,0.05039493]
[1742325203149,2.74199823,1895.7,1895.5,5.27551]
[1742325203355,2.74199823,1895.7,1895.6,0.05039493]
[1742325203913,2.74199823,1895.7,1895.4,6.06741]
[1742325204108,2.74199823,1895.7,1895.6,0.05039493]
[1742325204447,8.01708823,1895.7,1895.4,5.27581]
[1742325204745,2.74199823,1895.7,1895.4,10.55155]
[1742325204955,8.01709823,1895.7,1895.5,0.05039493]
[1742325205363,2.74199823,1895.7,1895.5,0.05039493]
[1742325205539,8.01709823,1895.7,1895.5,0.05039493]
[1742325206262,2.74199823,1895.7,1895.5,0.05039493]
[1742325206665,8.01709823,1895.7,1895.5,0.05039493]
[1742325208035,6.05277,1895.6,1895.3,5.27603]
[1742325208257,2.74199823,1895.5,1895.2,11.41644]
[1742325208563,2.74199823,1895.5,1895.2,16.6928]
[1742325208725,2.74199823,1895.5,1895.3,5.32657493]
[1742325210170,5.27593,1895.4,1895.3,0.05039493]
[1742325210333,8.01787823,1895.5,1895.3,0.05039493]
[1742325210538,13.09587823,1895.5,1895.2,11.41648]
[1742325210760,13.09587823,1895.5,1895.3,0.05039493]
[1742325211175,7.81999823,1895.5,1895.3,0.05039493]
[1742325211369,7.81999823,1895.5,1895.4,0.05039493]
[1742325212247,7.81999823,1895.5,1895.2,5.27633]
[1742325212446,7.81999823,1895.5,1895.4,0.05039493]
[1742325212854,7.81999823,1895.5,1895.2,12.304656]
[1742325213049,7.81999823,1895.5,1895.3,0.05039493]
[1742325213274,7.81999823,1895.5,1895.2,12.304656]
[1742325213447,7.81999823,1895.5,1895.4,0.05039493]
[1742325213652,7.81999823,1895.5,1895.2,12.304656]
[1742325213864,7.81999823,1895.5,1895.3,0.05039493]
[1742325214066,7.81999823,1895.5,1895.2,12.304656]
[1742325214285,7.81999823,1895.5,1895.3,0.05039493]
[1742325214577,7.81999823,1895.5,1895.2,7.028326]
[1742325214785,7.81999823,1895.5,1895.4,0.05039493]
[1742325214944,7.81999823,1895.5,1895.2,5.27628]
[1742325215144,7.81999823,1895.5,1895.4,0.05039493]
[1742325215371,13.09564823,1895.5,1895.2,1.752039]
[1742325215684,18.37147823,1895.5,1895.3,0.05038282]
[1742325215976,13.09564823,1895.5,1895.1,17.52069]
[1742325216139,7.81999823,1895.5,1895.4,0.05038282]
[1742325216340,7.81999823,1895.5,1895.2,10.55269]
[1742325216543,7.81999823,1895.5,1895.4,0.05038282]
[1742325216742,7.81999823,1895.5,1895.3,5.27618]
[1742325216989,7.81999823,1895.5,1895.4,0.05038282]
[1742325218688,2.74199823,1895.7,1895.4,6.6378691]
[1742325218878,2.74199823,1895.7,1895.5,5.27556]
[1742325219285,2.74199823,1895.7,1895.6,0.05038282]
[1742325221795,5.47667188,1895.8,1895.6,5.32575282]
[1742325221982,2.74199823,1895.7,1895.6,5.32575282]
[1742325222381,2.74199823,1895.7,1895.6,0.05038282]
[1742325223092,2.74199823,1895.7,1895.6,5.32575282]
[1742325223400,2.74199823,1895.7,1895.6,6.3858771]
[1742325223553,2.74199823,1895.9,1895.8,5.27481]
[1742325223957,2.74199823,1895.9,1895.8,5.32464772]
[1742325224414,2.74199823,1896.0,1895.9,5.27433]
[1742325224565,2.74199823,1896.1,1896.0,5.27426]
[1742325224907,2.74199823,1896.1,1896.0,5.32409772]
[1742325225103,2.74199823,1896.1,1896.0,0.04983772]
[1742325228865,2.74199823,1896.1,1895.9,6.09543]
[1742325229066,2.74199823,1896.0,1895.9,6.09543]
[1742325231108,5.47597165,1896.2,1895.9,6.09543]
[1742325231268,2.74199823,1896.0,1895.9,6.09543]
[1742325235574,2.74199823,1896.0,1895.9,0.8211]
[1742325235778,2.74199823,1896.0,1895.8,5.27465]
[1742325236093,2.74199823,1895.9,1895.8,6.05565]
[1742325237423,2.74199823,1895.9,1895.8,7.802713]
[1742325240387,0.8114,1896.3,1896.1,5.27395]
[1742325240596,2.74199823,1896.5,1896.2,5.27343]
[1742325240793,13.91515823,1896.6,1896.3,5.27338]
[1742325240989,2.74199823,1896.4,1896.3,5.27338]
[1742325242504,2.74199823,1896.6,1896.5,5.27278]
[1742325242706,2.74199823,1896.6,1896.4,5.27303]
[1742325242898,2.74199823,1896.6,1896.4,10.54597]
[1742325243103,2.74199823,1896.6,1896.2,5.27354]
[1742325243423,2.74199823,1896.4,1896.2,5.27369]
[1742325243618,2.74199823,1896.4,1896.1,11.41388]
[1742325243824,2.74199823,1896.2,1896.1,11.41388]
[1742325244527,6.35660982,1896.5,1896.3,5.27328]
[1742325244528,0.8094,1896.5,1896.3,5.27328]
[1742325244733,2.74199823,1896.5,1896.3,5.27328]
[1742325245320,2.74199823,1896.5,1896.3,10.54655]
[1742325246025,2.74199823,1896.5,1896.3,5.27327]
[1742325246735,2.74199823,1896.5,1896.3,10.54654]
[1742325247025,0.38953567,1896.6,1896.3,10.54654]
[1742325247026,2.74199823,1896.7,1896.6,5.27259]
[1742325248796,2.74199823,1896.9,1896.8,5.27193]
[1742325248997,18.50240377,1897.1,1896.9,5.27157]
[1742325248998,7.81599823,1897.1,1896.9,5.27157]
[1742325249197,7.81599823,1897.1,1896.9,10.54318]
[1742325249418,7.81599823,1897.1,1896.9,5.27157]
[1742325249921,2.74199823,1897.1,1897.0,5.27148]
[1742325250499,2.74199823,1897.3,1897.2,5.27091]
[1742325250704,2.74199823,1897.3,1897.1,5.27113]
[1742325251335,0.8072,1897.4,1897.2,5.27092]
[1742325251526,2.74199823,1897.3,1897.1,5.27113]
[1742325251721,2.74199823,1897.3,1897.1,6.325387]
[1742325252543,2.74199823,1897.3,1897.2,5.27092]
[1742325253539,5.073,1897.5,1897.2,5.27092]
[1742325253767,2.74199823,1897.3,1897.2,5.27092]
[1742325254041,2.74199823,1897.3,1897.1,11.596457]
[1742325254199,8.01281823,1897.3,1897.0,6.14]
[1742325254405,2.74199823,1897.1,1897.0,6.14]
[1742325254626,2.74199823,1897.1,1896.9,5.27164]
[1742325254825,5.27157,1897.0,1896.7,6.14]
[1742325255061,2.74199823,1896.9,1896.7,11.41215]
[1742325255351,2.74199823,1896.9,1896.8,5.27203]
[1742325255852,2.74199823,1896.9,1896.7,11.41215]
[1742325257556,2.74199823,1896.9,1896.8,5.27203]
[1742325260258,2.74199823,1896.9,1896.7,11.41215]
[1742325260461,2.74199823,1896.9,1896.7,6.14]
[1742325260616,2.74199823,1896.9,1896.7,11.41214]
[1742325261619,3.52359823,1896.9,1896.7,6.14]
[1742325262046,8.79543823,1896.9,1896.7,6.14]
[1742325262432,5.27203,1896.8,1896.7,6.14]
[1742325264430,8.79543823,1896.9,1896.5,5.27278]
[1742325264637,2.74199823,1896.7,1896.5,5.27271]
[1742325265551,2.74199823,1896.7,1896.6,5.27259]
[1742325265868,5.071,1896.8,1896.7,5.27231]
[1742325266078,2.74199823,1896.9,1896.7,5.27216]
[1742325266261,2.74199823,1896.9,1896.8,5.27203]
[1742325267670,2.74199823,1896.9,1896.8,6.07653]
[1742325269226,5.27037,1897.4,1897.0,5.27127]
[1742325269447,2.74199823,1897.2,1897.1,5.2712]
[1742325275144,2.74199823,1897.4,1897.3,5.27064]
[1742325275539,0.7605,1897.7,1897.5,5.27003]
[1742325275738,2.74199823,1897.6,1897.5,5.27003]
[1742325276679,8.36213805,1897.6,1897.3,11.41059]
[1742325276980,2.74199823,1897.4,1897.3,11.41064]
[1742325279772,2.74199823,1897.4,1897.3,5.27064]
[1742325281753,0.7605,1897.7,1897.5,5.27006]
[1742325281989,2.74199823,1897.6,1897.5,5.27006]
[1742325282187,2.74199823,1897.6,1897.4,5.27015]
[1742325282570,2.74199823,1897.6,1897.4,10.54035]
[1742325282757,2.74199823,1897.6,1897.4,5.27015]
[1742325283878,2.74199823,1897.6,1897.4,10.54038]
[1742325284296,2.74199823,1897.6,1897.4,5.27015]
[1742325284587,2.74199823,1897.6,1897.4,10.5404]
[1742325284794,2.74199823,1897.6,1897.4,5.27015]
[1742325285175,2.74199823,1897.6,1897.4,10.54037]
[1742325287294,2.74199823,1897.6,1897.5,5.27009]
[1742325287900,11.55347727,1897.8,1897.5,5.27009]
[1742325288187,2.74199823,1897.6,1897.4,6.10215]
[1742325288604,2.74199823,1897.6,1897.5,5.27009]
[1742325288779,2.74199823,1897.6,1897.4,5.27015]
[1742325289176,2.74199823,1897.6,1897.3,10.54114]
[1742325289374,2.74199823,1897.4,1897.3,5.27055]
[1742325292267,2.74199823,1897.4,1897.3,6.938695]
[1742325294604,2.74199823,1897.4,1897.3,7.738495]
[1742325295903,2.74199823,1897.6,1897.5,5.26983]
[1742325299308,2.74199823,1897.6,1897.4,10.54028]
[1742325299496,2.74199823,1897.6,1897.4,5.27013]
[1742325299811,2.74199823,1897.6,1897.5,5.27009]
[1742325301413,2.74199823,1897.6,1897.5,6.324112]
[1742325304518,2.74199823,1897.6,1897.5,5.27009]
[1742325305514,2.74199823,1897.6,1897.3,6.07023]
[1742325305701,2.74199823,1897.4,1897.3,5.27043]
[1742325306022,0.8004,1897.3,1897.0,10.54271]
[1742325306211,0.8004,1897.3,1897.1,5.27117]
[1742325306920,0.8004,1897.3,1897.0,5.27132]
[1742325307086,0.8004,1897.3,1897.1,5.27115]
[1742325307418,2.74199823,1897.2,1897.1,10.54211]
[1742325307593,2.74199823,1897.2,1897.1,11.596321]
[1742325308287,2.74199823,1897.2,1897.1,6.325171]
[1742325308628,2.74199823,1897.2,1897.1,5.27096]
[1742325309822,3.50509823,1897.2,1896.9,11.41165]
[1742325309995,2.74199823,1897.0,1896.9,11.41165]
[1742325311027,2.74199823,1897.0,1896.9,5.27165]
[1742325311210,2.74199823,1897.0,1896.9,7.467207]
[1742325312411,2.74199823,1897.0,1896.8,16.6838]
[1742325312726,2.74199823,1897.0,1896.7,11.41229]
[1742325312923,2.74199823,1896.8,1896.7,11.41229]
[1742325313110,2.74199823,1896.8,1896.7,13.186226]
[1742325313498,2.74199823,1896.8,1896.7,7.913936]
[1742325313702,2.74199823,1896.8,1896.7,13.186246]
[1742325313928,2.74199823,1896.8,1896.7,7.046246]
[1742325316096,2.74199823,1896.8,1896.6,6.14]
[1742325316296,2.74199823,1896.8,1896.6,11.41249]
[1742325316627,2.74199823,1896.8,1896.6,6.14]
[1742325316925,2.74199823,1896.8,1896.3,11.09456]
[1742325316926,13.28636823,1896.8,1896.4,5.27313]
[1742325317124,2.74199823,1896.6,1896.4,5.27313]
[1742325317324,3.55579823,1896.6,1896.4,5.27313]
[1742325317629,8.82853823,1896.6,1896.3,5.2733]
[1742325317833,2.74199823,1896.4,1896.3,5.2733]
[1742325318802,2.74199823,1896.4,1896.2,10.54715]
[1742325319003,2.74199823,1896.4,1896.3,5.27342]
[1742325320524,5.8972,1896.8,1896.6,5.27257]
[1742325320838,2.74199823,1896.7,1896.6,5.27257]
[1742325321383,2.74199823,1896.9,1896.7,5.27231]
[1742325321508,8.63919823,1897.0,1896.9,5.27175]
[1742325321705,7.80899823,1897.0,1896.9,5.27175]
[1742325321910,2.74199823,1897.1,1897.0,5.27148]
[1742325322119,1.2176641,1897.4,1896.9,0.7915]
[1742325322436,2.74199823,1897.3,1897.2,5.27084]
[1742325322807,2.74199823,1897.3,1897.2,6.325042]
[1742325322999,7.80899823,1897.4,1897.3,5.27064]
[1742325323202,2.74199823,1897.4,1897.3,5.27064]
[1742325323614,2.74199823,1897.5,1897.4,5.2702]
[1742325323863,2.74199823,1897.6,1897.4,10.54029]
[1742325324018,2.74199823,1897.6,1897.4,5.27009]
[1742325324223,2.74199823,1897.6,1897.4,10.54029]
[1742325324440,2.74199823,1897.6,1897.5,5.27009]
[1742325324752,2.74199823,1897.6,1897.4,10.54049]
[1742325324910,2.74199823,1897.5,1897.4,10.54049]
[1742325325339,2.74199823,1897.5,1897.4,11.594539]
[1742325325843,2.74199823,1897.5,1897.4,6.324209]
[1742325326551,5.067,1897.8,1897.6,5.26969]
[1742325326751,2.74199823,1897.7,1897.6,5.26969]
[1742325326952,2.74199823,1897.7,1897.5,5.27003]
[1742325327129,2.74199823,1897.7,1897.5,6.4294709]
[1742325327638,2.74199823,1897.7,1897.5,6.4294009]
[1742325327833,2.74199823,1897.7,1897.6,5.26976]
[1742325328750,0.7806,1897.6,1897.3,11.41057]
[1742325329053,2.74199823,1897.4,1897.3,11.41057]
[1742325330251,2.74199823,1897.4,1897.3,13.6908242]
[1742325330950,2.74199823,1897.4,1897.3,11.41064]
[1742325332572,2.74199823,1897.4,1897.3,5.27064]
[1742325333555,2.74199823,1897.6,1897.3,10.54101]
[1742325333723,2.74199823,1897.6,1897.4,5.27024]
[1742325333919,6.09462,1897.8,1897.4,5.27024]
[1742325334278,2.74199823,1897.6,1897.4,5.27024]
[1742325334923,6.09462,1897.8,1897.4,6.06906]
[1742325335154,2.74199823,1897.6,1897.4,6.06906]
[1742325337169,2.74199823,1897.6,1897.5,5.27009]
[1742325339042,2.74199823,1897.6,1897.5,6.404005]
[1742325340229,2.74199823,1897.6,1897.5,5.27009]
[1742325344246,2.74199823,1897.6,1897.4,6.06914]
[1742325344449,8.01184823,1897.6,1897.3,11.41062]
[1742325344658,2.74199823,1897.4,1897.3,11.41062]
[1742325344961,2.74199823,1897.4,1897.3,5.27062]
[1742325345659,2.74199823,1897.6,1897.4,5.27013]
[1742325345866,2.74199823,1897.6,1897.4,10.54034]
[1742325346067,2.74199823,1897.6,1897.4,5.27013]
[1742325346770,2.74199823,1897.6,1897.4,10.54036]
[1742325346943,0.7899,1897.7,1897.4,5.27013]
[1742325347266,2.74199823,1897.5,1897.4,5.27013]
[1742325357081,2.74199823,1897.6,1897.4,5.27013]
[1742325357585,11.32913,1897.7,1897.4,5.27013]
[1742325357755,2.74199823,1897.5,1897.4,5.27013]
[1742325358856,8.58609823,1897.8,1897.6,5.26965]
[1742325359406,8.58609823,1897.8,1897.6,10.53931]
[1742325360046,8.58609823,1897.8,1897.6,10.53933]
[1742325360296,8.58609823,1897.8,1897.6,5.26965]
[1742325360455,8.58609823,1897.8,1897.6,10.53932]
[1742325360648,2.74199823,1897.8,1897.7,5.26953]
[1742325360991,5.74199823,1898.0,1897.8,5.26911]
[1742325361160,2.74199823,1897.9,1897.8,5.26911]
[1742325361362,2.74199823,1898.1,1898.0,5.2687]
[1742325361557,2.74199823,1898.3,1898.2,5.26814]
[1742325361950,2.74199823,1898.4,1898.2,10.53612]
[1742325362168,2.74199823,1898.4,1898.2,5.26798]
[1742325362451,2.74199823,1898.4,1898.3,5.26787]
[1742325362874,2.74199823,1898.4,1898.2,10.53599]
[1742325363370,5.26652,1898.8,1898.4,6.04091]
[1742325363580,5.063,1898.8,1898.5,5.26716]
[1742325363762,0.1113971,1898.9,1898.7,5.26675]
[1742325364098,0.1113971,1898.9,1898.8,6.01968]
[1742325367295,0.1113971,1898.9,1898.8,0.7532]
[1742325367593,0.1113971,1898.9,1898.8,6.01968]
[1742325367797,0.1113971,1898.9,1898.8,7.148309]
[1742325369675,0.1113971,1898.9,1898.8,13.42066471]
[1742325369875,0.1113971,1898.9,1898.8,13.368009]
[1742325370365,7.1e-06,1898.9,1898.8,13.368009]
[1742325371086,7.1e-06,1898.9,1898.8,18.429009]
[1742325371286,7.1e-06,1898.9,1898.8,13.368009]
[1742325371483,7.1e-06,1898.9,1898.8,21.979009]
[1742325371888,8.20220449,1899.9,1899.6,5.26413]
[1742325372068,2.74199823,1899.9,1899.7,5.26396]
[1742325372267,2.74199823,1899.9,1899.6,5.26413]
[1742325372682,2.74199823,1899.9,1899.6,5.26408]
[1742325372888,2.74199823,1899.7,1899.4,5.26479]
[1742325373173,0.8268,1899.6,1899.3,11.40495]
[1742325373395,0.8268,1899.8,1899.5,5.26454]
[1742325373571,8.83262823,1899.8,1899.4,5.26461]
[1742325374663,13.45159374,1899.9,1899.5,6.04268]
[1742325375421,2.74199823,1899.7,1899.5,5.26448]
[1742325375571,5.26436,1899.6,1899.3,6.14]
[1742325375890,2.74199823,1899.5,1899.3,11.40508]
[1742325376201,2.74199823,1899.5,1899.3,5.26508]
[1742325376669,2.74199823,1899.5,1899.3,5.26494]
[1742325376872,2.74199823,1899.5,1899.3,10.52991]
[1742325377206,2.74199823,1899.5,1899.4,5.26482]
[1742325377402,13.87776823,1899.7,1899.4,5.26482]
[1742325377586,13.87776823,1899.7,1899.3,10.52989]
[1742325377793,13.87776823,1899.7,1899.4,5.26478]
[1742325377988,13.87776823,1899.7,1899.3,5.26494]
[1742325378288,19.14193823,1899.7,1899.3,5.26494]
[1742325378495,13.87776823,1899.7,1899.3,5.26494]
[1742325378799,5.8717,1899.7,1899.4,5.26465]
[1742325379003,5.8717,1899.7,1899.5,5.26441]
[1742325380106,5.8717,1899.7,1899.4,5.26465]
[1742325380421,2.74199823,1899.5,1899.3,6.932098]
[1742325380583,2.74199823,1899.5,1899.3,10.53]
[1742325380916,2.74199823,1899.5,1899.3,5.26493]
[1742325381566,2.74199823,1899.5,1899.1,5.26559]
[1742325381567,8.00673823,1899.5,1899.1,5.26559]
[1742325381770,2.74199823,1899.3,1899.1,5.26559]
[1742325382407,2.74199823,1899.3,1899.0,6.14]
[1742325382615,8.00713823,1899.3,1899.0,6.14]
[1742325382814,13.27240823,1899.3,1899.0,6.14]
[1742325383317,8.00723823,1899.3,1899.0,11.40573]
[1742325383602,2.74199823,1899.1,1899.0,6.14]
[1742325383904,0.7789,1899.0,1898.8,1.128629]
[1742325384078,0.7789,1899.0,1898.8,6.395049]
[1742325384283,8.00769823,1899.1,1898.8,6.395049]
[1742325384897,8.00769823,1899.1,1898.7,22.68954]
[1742325385112,8.00769823,1899.1,1898.8,5.26637]
[1742325386902,2.74199823,1899.0,1898.8,5.26637]
[1742325387071,8.00823823,1898.9,1898.6,12.45448506]
[1742325387272,2.74199823,1898.7,1898.6,6.31448506]
[1742325387479,2.74199823,1898.7,1898.4,11.40754]
[1742325387681,2.74199823,1898.5,1898.4,7.862824]
[1742325387884,3.50479823,1898.5,1898.2,16.67607]
[1742325388098,2.74199823,1898.4,1898.2,11.40796]
[1742325388301,2.74199823,1898.3,1898.2,11.40796]
[1742325388480,2.74199823,1898.4,1898.2,13.075594]
[1742325389000,2.74199823,1898.3,1898.2,13.075594]
[1742325389373,8.00992823,1898.3,1897.9,6.09937]
[1742325389572,2.74199823,1898.0,1897.9,5.26887]
[1742325389801,2.74199823,1898.1,1897.9,5.26887]
[1742325390403,2.74199823,1898.2,1897.9,5.26887]
[1742325390574,2.74199823,1898.0,1897.8,6.14]
[1742325390907,3.56649823,1898.1,1897.9,5.26898]
[1742325391203,3.56649823,1898.1,1897.8,12.10488]
[1742325391387,2.74199823,1898.0,1897.8,12.10488]
[1742325391592,2.74199823,1897.9,1897.7,11.40952]
[1742325391906,2.74199823,1897.9,1897.7,6.14]
[1742325392073,2.74199823,1897.8,1897.6,6.14]
[1742325392269,2.74199823,1897.7,1897.6,6.14]
[1742325392697,8.77182823,1897.7,1897.6,6.14]
[1742325393018,3.50229823,1897.7,1897.6,6.14]
[1742325394679,0.7603,1897.7,1897.6,6.14]
[1742325394878,11.36027,1897.9,1897.6,6.14]
[1742325395079,2.74199823,1897.7,1897.6,6.14]
[1742325395677,0.8221,1897.9,1897.6,7.80799]
[1742325395877,0.8221,1898.1,1897.9,5.26881]
[1742325396076,2.74199823,1898.0,1897.8,5.2692]
[1742325396282,2.74199823,1898.0,1897.7,5.26935]
[1742325396521,2.74199823,1898.0,1897.7,5.26927]
[1742325397103,2.74199823,1898.0,1897.7,10.53865]
[1742325397315,2.74199823,1898.0,1897.8,5.26922]
[1742325398224,0.8221,1898.1,1897.6,36.66799]
[1742325398414,2.74199823,1898.1,1897.9,5.26892]
[1742325399394,2.74199823,1898.1,1897.9,5.26885]
[1742325399792,2.74199823,1898.1,1897.8,5.26913]
[1742325399991,8.01053823,1898.1,1897.8,5.26913]
[1742325400192,13.27912823,1898.1,1897.7,6.06511]
[1742325400422,2.74199823,1897.9,1897.7,11.33428]
[1742325400821,3.82829805,1897.9,1897.5,11.41]
[1742325401024,2.74199823,1897.7,1897.5,6.14]
[1742325401328,2.74199823,1897.7,1897.5,11.41006]
[1742325401713,2.74199823,1897.7,1897.5,11.40992]
[1742325401923,0.8121,1897.9,1897.8,5.26925]
[1742325402104,2.74199823,1897.9,1897.8,5.26925]
[1742325402919,2.74199823,1897.9,1897.7,5.26952]
[1742325404129,2.74199823,1897.9,1897.6,5.26979]
[1742325404621,2.74199823,1897.9,1897.7,5.26948]
[1742325404821,2.74199823,1897.9,1897.7,10.53892]
[1742325405427,2.74199823,1897.9,1897.7,5.26944]
[1742325405639,2.74199823,1897.9,1897.7,10.53882]
[1742325405809,2.74199823,1897.9,1897.7,10.53875]
[1742325406009,2.74199823,1897.9,1897.7,10.53874]
[1742325406211,2.74199823,1897.9,1897.7,5.26937]
[1742325407198,2.74199823,1897.9,1897.7,10.53873]
[1742325407930,2.74199823,1897.9,1897.7,5.26936]
[1742325408135,2.74199823,1897.9,1897.8,5.26925]
[1742325408530,0.7675,1898.1,1897.8,1.053861]